bitfinex-derivatives/quotes_BNBF0:USTF0_20251203
["timestamp","ask_amount","ask_price","bid_price","bid_amount"]
[1764798012596,1.09554847,914.47,913.22,1.25]
[1764798014497,1.09554847,914.49,913.22,2.06295843]
[1764798016394,1.09554847,914.5,913.22,1.25]
[1764798018498,1.09554847,914.51,913.22,1.25]
[1764798022398,1.09554847,914.52,913.22,1.25]
[1764798023102,1.09554847,914.52,913.2,0.81295843]
[1764798024303,1.09554847,914.52,913.19,0.81295843]
[1764798024500,1.09554847,914.5,913.18,0.81295843]
[1764798024702,1.09554847,914.49,913.17,0.81295843]
[1764798025006,1.09554847,914.49,913.18,0.81295843]
[1764798025406,1.09554847,914.49,913.19,1.069]
[1764798027507,1.09554847,914.5,913.19,1.88195843]
[1764798028002,1.09554847,914.52,913.2,0.81295843]
[1764798030304,1.09554847,914.51,913.2,0.81295843]
[1764798033012,1.09554847,914.5,913.19,1.88195843]
[1764798033312,1.09554847,914.5,913.2,0.81295843]
[1764798034309,1.09554847,914.3,913.19,1.069]
[1764798034512,1.09554847,914.28,913.19,1.069]
[1764798035107,1.09481584,914.27,913.19,1.069]
[1764798035311,1.09481584,914.26,913.19,1.069]
[1764798035511,1.09481584,914.25,913.19,1.069]
[1764798035711,1.09481584,914.24,913.19,1.069]
[1764798036011,1.09481584,914.23,913.19,1.069]
[1764798036211,1.09481584,914.22,913.19,1.069]
[1764798036410,1.09481584,914.21,913.19,1.069]
[1764798036610,1.09481584,914.2,913.19,1.069]
[1764798036812,1.09481584,914.19,913.19,1.069]
[1764798037009,1.09481584,914.18,913.19,1.069]
[1764798037212,1.09481584,914.17,913.19,1.069]
[1764798037407,1.09481584,914.16,913.19,1.069]
[1764798037709,1.09481584,914.15,913.19,1.069]
[1764798037909,1.09554847,914.28,913.19,1.069]
[1764798038113,1.09477303,914.27,913.19,1.069]
[1764798038312,1.09477303,914.26,913.19,1.069]
[1764798038613,1.09477303,914.25,913.19,1.069]
[1764798038810,1.09477303,914.24,913.19,1.069]
[1764798039014,1.09477303,914.23,913.19,1.069]
[1764798039216,1.09477303,914.22,913.19,1.069]
[1764798039413,1.09477303,914.21,913.19,1.069]
[1764798039612,1.09554847,914.34,913.19,1.069]
[1764798039815,1.09471233,914.33,913.19,1.069]
[1764798040013,1.09471233,914.32,913.19,1.069]
[1764798040217,1.09471233,914.31,913.19,1.069]
[1764798040415,1.09471233,914.3,913.19,1.069]
[1764798040613,1.09471233,914.29,913.19,1.069]
[1764798040817,1.09554847,914.33,913.19,1.069]
[1764798040818,1.09471233,914.28,913.19,1.069]
[1764798041117,1.09471233,914.27,913.19,1.069]
[1764798041317,1.09471233,914.26,913.19,1.069]
[1764798041613,1.09471233,914.25,913.2,1.16]
[1764798041918,1.09471233,914.24,913.2,1.16]
[1764798042117,1.09471233,914.23,913.2,1.16]
[1764798042413,0.19036626,914.81,913.2,1.16]
[1764798042414,1.09554847,914.38,913.2,1.16]
[1764798042618,1.09464486,914.37,913.2,1.16]
[1764798042814,1.09464486,914.36,913.2,1.16]
[1764798043015,1.09464486,914.35,913.2,1.16]
[1764798043319,1.09464486,914.34,913.2,1.16]
[1764798043517,1.09464486,914.33,913.2,1.16]
[1764798043717,1.09464486,914.32,913.2,1.16]
[1764798043918,1.09464486,914.31,913.2,1.16]
[1764798044219,1.09464486,914.3,913.2,1.97295843]
[1764798044417,1.09464486,914.29,913.2,1.97295843]
[1764798044620,1.09464486,914.28,913.2,1.16]
[1764798044919,1.09464486,914.27,913.2,1.16]
[1764798045120,1.09464486,914.26,913.2,1.16]
[1764798045420,1.09464486,914.25,913.2,1.97295843]
[1764798045616,1.09464486,914.24,913.2,1.97295843]
[1764798045821,1.09554847,914.34,913.2,1.97295843]
[1764798046020,1.09464486,914.33,913.2,1.97295843]
[1764798046220,1.09464486,914.32,913.25,0.81295843]
[1764798046516,1.09464486,914.31,913.26,0.81295843]
[1764798046721,1.09464486,914.3,913.26,0.81295843]
[1764798047021,1.09464486,914.29,913.26,0.81295843]
[1764798047317,1.09464486,914.28,913.27,0.81295843]
[1764798047521,1.09464486,914.28,913.2,1.16]
[1764798047522,1.09464486,914.27,913.23,0.81295843]
[1764798047722,1.09464486,914.26,913.23,0.81295843]
[1764798048017,1.09464486,914.25,913.23,0.81295843]
[1764798048222,1.09464486,914.24,913.24,0.81295843]
[1764798048518,1.09464486,914.23,913.2,1.97295843]
[1764798048722,1.09464486,914.22,913.2,1.97295843]
[1764798048917,1.09464486,914.21,913.2,1.97295843]
[1764798049121,1.09464486,914.2,913.2,1.97295843]
[1764798049424,1.09464486,914.19,913.21,0.81295843]
[1764798049622,1.09468821,914.18,913.21,0.81295843]
[1764798049922,1.09468821,914.17,913.21,0.81295843]
[1764798050221,1.09468821,914.16,913.21,0.81295843]
[1764798050421,1.09468821,914.15,913.22,0.81295843]
[1764798050722,1.09468821,914.14,913.22,0.81295843]
[1764798051023,1.09554847,914.25,913.22,0.81295843]
[1764798051221,1.09468821,914.24,913.22,0.81295843]
[1764798051421,1.09468821,914.23,913.23,0.81295843]
[1764798051621,1.09468821,914.22,913.23,0.81295843]
[1764798051818,1.09468821,914.21,913.23,0.81295843]
[1764798052023,1.09468821,914.2,913.23,0.81295843]
[1764798052221,1.09468821,914.19,913.24,0.81295843]
[1764798052421,1.09468821,914.18,913.24,0.81295843]
[1764798052617,1.09468821,914.17,913.24,0.81295843]
[1764798052921,1.09468821,914.16,913.24,0.81295843]
[1764798053222,1.09468821,914.15,913.25,0.81295843]
[1764798053421,1.09468821,914.14,913.25,0.81295843]
[1764798053719,1.09468821,914.13,913.25,0.81295843]
[1764798053922,1.09468821,914.12,913.25,0.81295843]
[1764798054122,1.09468821,914.11,913.25,0.81295843]
[1764798054317,1.09468821,914.1,913.26,0.81295843]
[1764798054521,1.09554847,914.21,913.26,0.81295843]
[1764798054718,1.09468821,914.2,913.26,0.81295843]
[1764798054922,1.09468821,914.19,913.26,0.81295843]
[1764798055117,1.09468821,914.18,913.26,0.81295843]
[1764798055321,1.09468821,914.17,913.27,0.81295843]
[1764798055617,1.09468821,914.16,913.27,0.81295843]
[1764798055821,1.09468821,914.15,913.27,0.81295843]
[1764798056017,1.09554847,914.21,913.27,0.81295843]
[1764798056018,1.09468821,914.14,913.27,0.81295843]
[1764798056222,1.09468821,914.13,913.27,0.81295843]
[1764798056423,1.09468821,914.12,913.27,0.81295843]
[1764798056623,1.09468821,914.11,913.27,0.81295843]
[1764798056823,1.09468821,914.1,913.27,0.81295843]
[1764798057119,1.09468821,914.09,913.27,0.81295843]
[1764798057421,1.09554847,914.2,913.28,0.81295843]
[1764798057620,1.0946885,914.19,913.28,0.81295843]
[1764798057818,1.0946885,914.18,913.28,0.81295843]
[1764798058023,1.0946885,914.17,913.28,0.81295843]
[1764798058222,1.0946885,914.16,913.28,0.81295843]
[1764798058421,1.0946885,914.15,913.28,0.81295843]
[1764798058725,1.0946885,914.14,913.28,0.81295843]
[1764798058924,1.0946885,914.13,913.29,0.92]
[1764798059122,1.0946885,914.12,913.29,0.92]
[1764798059325,1.0946885,914.11,913.29,1.73295843]
[1764798059523,1.0946885,914.1,913.29,1.73295843]
[1764798059721,1.0946885,914.09,913.29,1.73295843]
[1764798059925,1.0946885,914.08,913.29,1.73295843]
[1764798060122,1.09554847,914.19,913.29,1.73295843]
[1764798060326,1.0946885,914.18,913.29,1.73295843]
[1764798060524,1.0946885,914.17,913.29,1.73295843]
[1764798060728,1.0946885,914.16,913.29,0.92]
[1764798060926,1.0946885,914.15,913.29,0.92]
[1764798061123,1.0946885,914.14,913.29,0.92]
[1764798061324,1.0946885,914.13,913.29,0.92]
[1764798061626,1.0946885,914.12,913.29,0.92]
[1764798061824,1.0946885,914.11,913.29,0.92]
[1764798062128,1.0946885,914.1,913.29,0.92]
[1764798062326,1.0946885,914.09,913.29,0.92]
[1764798062630,1.0946885,914.08,913.29,0.92]
[1764798062826,1.09554847,914.06,913.29,0.92]
[1764798063026,1.0946885,914.05,913.29,0.92]
[1764798063526,1.09554847,914.03,913.29,0.92]
[1764798063726,1.0946885,914.02,913.29,0.92]
[1764798064325,1.0946885,914.01,913.29,0.92]
[1764798064628,1.0946885,914.0,913.29,0.92]
[1764798064826,0.19036626,914.81,913.29,0.92]
[1764798064827,1.09554847,913.94,913.29,0.92]
[1764798065031,1.09554847,913.92,913.29,0.92]
[1764798065224,1.0946885,913.91,913.29,0.92]
[1764798065426,1.0946885,913.9,913.29,0.92]
[1764798065630,1.0946885,913.89,913.29,0.92]
[1764798065930,1.0946885,913.88,913.29,0.92]
[1764798066130,1.0946885,913.87,913.29,0.92]
[1764798066330,1.0946885,913.86,913.29,0.92]
[1764798066531,1.0946885,913.85,913.29,0.92]
[1764798066827,1.09554847,913.93,913.29,0.92]
[1764798067030,1.09502377,913.92,913.29,0.92]
[1764798067331,1.09502377,913.91,913.29,0.92]
[1764798067633,1.09502377,913.9,913.29,0.92]
[1764798067929,1.09502377,913.89,913.29,0.92]
[1764798068132,1.09502377,913.88,913.29,0.92]
[1764798068327,1.09554847,913.96,913.29,0.92]
[1764798068526,1.09502377,913.95,913.29,0.92]
[1764798068727,1.09502377,913.94,913.29,0.92]
[1764798068926,1.09502377,913.93,913.29,0.92]
[1764798069129,1.09502377,913.92,913.29,0.92]
[1764798069328,1.09502377,913.91,913.29,0.92]
[1764798069530,1.09502377,913.9,913.29,0.92]
[1764798069826,1.09502377,913.89,913.29,0.92]
[1764798070026,1.09502377,913.88,913.29,0.92]
[1764798070228,1.09554847,913.97,913.29,0.92]
[1764798070427,1.09502377,913.96,913.29,0.92]
[1764798070629,1.09502377,913.95,913.29,0.92]
[1764798070828,1.09502377,913.94,913.29,0.92]
[1764798071130,1.09502377,913.93,913.29,0.92]
[1764798071326,1.09502377,913.92,913.29,0.92]
[1764798071526,1.09502377,913.91,913.29,0.92]
[1764798071831,1.09502377,913.9,913.29,0.92]
[1764798072131,1.09554847,913.99,913.29,0.92]
[1764798072331,1.09502377,913.98,913.29,0.92]
[1764798072628,1.09502377,913.97,913.29,0.92]
[1764798072827,1.09502377,913.96,913.29,0.92]
[1764798073029,1.09502377,913.95,913.29,0.92]
[1764798073232,1.09502377,913.94,913.29,0.92]
[1764798073432,1.09502377,913.93,913.29,0.92]
[1764798073632,1.09502377,913.92,913.29,0.92]
[1764798073830,1.09502377,913.91,913.29,0.92]
[1764798074030,1.09554847,913.98,913.29,0.92]
[1764798074228,1.09503245,913.97,913.29,0.92]
[1764798074432,2.92923744,914.81,913.29,0.92]
[1764798074433,1.09554847,913.93,913.29,0.92]
[1764798074633,1.09554847,913.9,913.29,0.92]
[1764798074832,1.09503245,913.89,913.29,0.92]
[1764798075433,1.09503245,913.88,913.29,0.92]
[1764798075633,1.09503245,913.87,913.29,0.92]
[1764798075833,1.09503245,913.86,913.29,0.92]
[1764798076033,1.09503245,913.85,913.29,0.92]
[1764798076230,1.09554847,913.92,913.29,0.92]
[1764798076434,1.09513291,913.91,913.29,0.92]
[1764798076634,1.09513291,913.9,913.29,0.92]
[1764798076929,1.09513291,913.89,913.29,0.92]
[1764798077134,1.09513291,913.88,913.29,0.92]
[1764798077333,1.09513291,913.87,913.29,0.92]
[1764798077532,1.09513291,913.86,913.29,0.92]
[1764798077735,1.09513291,913.85,913.29,0.92]
[1764798078036,1.09554847,913.93,913.2,1.16]
[1764798078236,1.09513291,913.92,913.2,1.16]
[1764798078535,1.09513291,913.91,913.2,1.16]
[1764798078733,1.09513291,913.9,913.2,1.16]
[1764798078934,1.09513291,913.89,913.2,1.16]
[1764798079131,1.09513291,913.88,913.2,1.16]
[1764798079437,1.09554847,913.83,913.2,1.16]
[1764798079635,1.09554847,913.81,913.2,1.16]
[1764798079836,1.09513291,913.8,913.2,1.16]
[1764798080537,1.09513291,913.79,913.21,1.117]
[1764798080837,1.09513291,913.78,913.21,1.117]
[1764798081035,1.09513291,913.77,913.21,1.117]
[1764798081234,1.09513291,913.76,913.21,1.117]
[1764798081538,1.09554847,913.83,913.21,1.117]
[1764798081735,1.09528219,913.82,913.21,1.117]
[1764798081940,1.09528219,913.81,913.21,1.117]
[1764798082137,1.09528219,913.8,913.21,1.117]
[1764798082335,1.09528219,913.79,913.21,1.117]
[1764798082540,1.09528219,913.78,913.21,1.117]
[1764798082740,2.73887118,914.66,913.21,1.117]
[1764798082741,2.19083066,913.77,913.21,1.117]
[1764798082937,1.09528219,913.76,913.21,1.117]
[1764798083940,2.19083066,913.76,913.21,1.117]
[1764798084143,1.09528219,913.75,913.21,1.117]
[1764798084342,1.09528219,913.74,913.21,1.117]
[1764798084539,1.09528219,913.73,913.21,1.117]
[1764798084743,1.09528219,913.72,913.21,1.117]
[1764798084945,2.19083066,913.71,913.21,1.117]
[1764798085142,1.09528219,913.7,913.21,1.117]
[1764798085446,1.09554847,913.66,913.21,1.117]
[1764798085645,1.09528219,913.65,913.21,1.117]
[1764798085843,2.19083066,913.65,913.21,1.117]
[1764798086046,1.09528219,913.64,913.21,1.117]
[1764798086444,1.09528219,913.63,913.21,1.117]
[1764798086644,1.09528219,913.62,913.21,1.117]
[1764798086845,1.09528219,913.61,913.21,1.117]
[1764798087050,1.09528219,913.6,913.21,1.117]
[1764798087247,1.09528219,913.59,913.21,1.117]
[1764798087445,1.09554847,913.66,913.21,1.117]
[1764798087645,1.095584,913.65,913.21,1.117]
[1764798087946,1.095584,913.64,913.21,1.117]
[1764798088146,1.095584,913.63,913.21,1.117]
[1764798088350,1.095584,913.62,913.21,1.117]
[1764798088550,1.095584,913.61,913.21,1.117]
[1764798088848,1.095584,913.6,913.21,1.117]
[1764798089049,1.09554847,913.67,913.21,1.117]
[1764798089247,1.095584,913.66,913.21,1.117]
[1764798089549,1.095584,913.65,913.21,1.117]
[1764798089852,1.095584,913.64,913.21,1.117]
[1764798090052,1.095584,913.63,913.21,1.117]
[1764798090249,1.095584,913.62,913.21,1.117]
[1764798090449,1.095584,913.61,913.21,1.117]
[1764798090655,1.095584,913.6,913.21,1.117]
[1764798090853,1.095584,913.59,913.21,1.117]
[1764798091150,1.095584,913.58,913.21,1.117]
[1764798091352,1.09554847,913.68,913.21,1.117]
[1764798091650,1.09561874,913.67,913.21,1.117]
[1764798091850,1.09561874,913.66,913.21,1.117]
[1764798092151,0.00843311,914.49,913.21,1.117]
[1764798092152,1.09561874,913.65,913.21,1.117]
[1764798092355,1.09561874,913.64,913.21,1.117]
[1764798092552,1.09561874,913.63,913.21,1.117]
[1764798092750,1.09561874,913.62,913.21,1.117]
[1764798092954,1.09561874,913.61,913.21,1.117]
[1764798093154,1.09561874,913.6,913.21,1.117]
[1764798093356,1.09561874,913.59,913.21,1.117]
[1764798093555,1.09554847,913.71,913.21,1.117]
[1764798093756,1.09561874,913.7,913.21,1.117]
[1764798093955,1.09561874,913.69,913.21,1.117]
[1764798094250,1.09554847,913.71,913.21,1.117]
[1764798094251,1.09561874,913.68,913.21,1.117]
[1764798094455,1.09561874,913.67,913.21,1.117]
[1764798094655,1.09561874,913.66,913.21,1.117]
[1764798094853,1.09561874,913.65,913.21,1.117]
[1764798095056,1.09561874,913.64,913.21,1.117]
[1764798095256,1.09561874,913.63,913.21,1.117]
[1764798095458,1.09561874,913.62,913.21,1.117]
[1764798095655,1.09561874,913.61,913.21,1.117]
[1764798095852,1.09561874,913.6,913.21,1.117]
[1764798096051,1.09554847,913.73,913.21,1.117]
[1764798096250,1.09561874,913.72,913.21,1.117]
[1764798096452,1.09561874,913.71,913.21,1.117]
[1764798096651,1.09561874,913.7,913.21,1.117]
[1764798096851,1.09561874,913.69,913.21,1.117]
[1764798097056,1.09561874,913.68,913.21,1.117]
[1764798097256,1.09561874,913.67,913.21,1.117]
[1764798097457,1.09561874,913.66,913.21,1.117]
[1764798097656,1.09561874,913.65,913.21,1.117]
[1764798097857,1.09561874,913.64,913.21,1.117]
[1764798098054,1.09561874,913.63,913.21,1.117]
[1764798098258,1.09561874,913.62,913.21,1.117]
[1764798098458,1.09561874,913.61,913.21,1.117]
[1764798098758,1.09561874,913.6,913.21,1.117]
[1764798099058,1.09554847,913.75,913.21,1.117]
[1764798099256,1.09561874,913.74,913.21,1.117]
[1764798099459,1.09561874,913.73,913.21,1.117]
[1764798099657,1.09561874,913.72,913.21,1.117]
[1764798099855,1.09561874,913.71,913.21,1.117]
[1764798100057,1.09561874,913.7,913.21,1.117]
[1764798100358,1.09561874,913.69,913.21,1.117]
[1764798100554,1.09561874,913.68,913.21,1.117]
[1764798100756,1.09561874,913.67,913.21,1.117]
[1764798100957,1.09561874,913.66,913.21,1.117]
[1764798101156,1.09561874,913.65,913.21,1.117]
[1764798101457,1.09561874,913.64,913.21,1.117]
[1764798101656,1.09561874,913.63,913.21,1.117]
[1764798101861,1.09561874,913.62,913.21,1.117]
[1764798102062,1.09561874,913.61,913.21,1.117]
[1764798102259,1.09554847,913.77,913.21,1.117]
[1764798102465,1.09561874,913.76,913.21,1.117]
[1764798102659,1.09561874,913.75,913.21,1.117]
[1764798102863,1.09561874,913.74,913.21,1.117]
[1764798103064,1.09561874,913.73,913.21,1.117]
[1764798103265,1.09561874,913.72,913.21,1.117]
[1764798103462,1.09554847,913.77,913.21,1.117]
[1764798103463,1.09561874,913.71,913.22,1.104]
[1764798103765,1.09561874,913.7,913.22,1.104]
[1764798104064,1.09561874,913.69,913.22,1.104]
[1764798104265,1.09561874,913.68,913.22,1.104]
[1764798104465,1.09561874,913.67,913.22,1.104]
[1764798104659,1.09561874,913.66,913.22,1.104]
[1764798104864,1.09561874,913.65,913.22,1.104]
[1764798105060,1.09561874,913.64,913.22,1.104]
[1764798105262,1.09561874,913.63,913.22,1.104]
[1764798105461,1.09561874,913.62,913.22,1.104]
[1764798105665,1.09561874,913.61,913.22,1.104]
[1764798105961,1.09561874,913.6,913.22,1.104]
[1764798106161,1.09561874,913.59,913.22,1.104]
[1764798106362,1.09554847,913.77,913.22,1.104]
[1764798106363,1.09554847,913.76,913.22,1.104]
[1764798106563,2.19118072,913.75,913.22,1.104]
[1764798106863,1.09554847,913.68,913.22,1.104]
[1764798107062,1.09563225,913.67,913.22,1.104]
[1764798108463,2.19118072,913.67,913.22,1.104]
[1764798108661,1.09563225,913.66,913.22,1.104]
[1764798109366,2.19118072,913.66,913.22,1.104]
[1764798109666,1.09563225,913.65,913.22,1.104]
[1764798110362,1.09563225,913.64,913.22,1.104]
[1764798110567,1.09554847,913.67,913.22,1.104]
[1764798110568,1.09563225,913.63,913.22,1.104]
[1764798110768,1.09563225,913.62,913.22,1.104]
[1764798111066,1.09563225,913.61,913.22,1.104]
[1764798111263,1.09563225,913.6,913.22,1.104]
[1764798111465,1.09563225,913.59,913.22,1.104]
[1764798111662,1.09563225,913.58,913.22,1.104]
[1764798111862,1.09563225,913.57,913.22,1.104]
[1764798112066,1.09563225,913.56,913.22,1.104]
[1764798112264,1.09563225,913.55,913.22,1.104]
[1764798112468,2.19118072,913.54,913.22,1.104]
[1764798112767,1.09563225,913.53,913.22,1.104]
[1764798112968,1.09554847,913.49,913.22,1.104]
[1764798113169,1.09563225,913.48,913.22,1.104]
[1764798113469,1.09563225,913.47,913.22,1.104]
[1764798113666,1.09563225,913.46,913.22,1.104]
[1764798113965,1.09563225,913.45,913.22,1.104]
[1764798114166,1.09563225,913.44,913.22,1.104]
[1764798114365,1.09563225,913.43,913.22,1.104]
[1764798114570,1.09554847,913.47,913.22,1.104]
[1764798114571,1.09563225,913.42,913.22,1.104]
[1764798114763,1.09563225,913.41,913.22,1.104]
[1764798114966,1.09563225,913.4,913.22,1.104]
[1764798115165,1.09563225,913.39,913.22,1.104]
[1764798115469,1.09563225,913.38,913.22,1.104]
[1764798115665,1.09563225,913.37,913.22,1.104]
[1764798115869,1.09563225,913.36,913.22,1.104]
[1764798116067,1.09563225,913.35,913.22,1.104]
[1764798116268,1.09563225,913.34,913.22,1.104]
[1764798116470,1.09554847,913.48,913.22,1.104]
[1764798116667,1.09591265,913.47,913.22,1.104]
[1764798116865,1.09554847,913.55,913.22,1.104]
[1764798116866,1.09591265,913.46,913.22,1.104]
[1764798117065,1.09554847,913.55,913.22,1.104]
[1764798117268,1.09575964,913.54,913.22,1.104]
[1764798117467,1.09575964,913.53,913.22,1.104]
[1764798117669,1.09575964,913.52,913.22,1.104]
[1764798117964,1.09575964,913.51,913.22,1.104]
[1764798118266,1.09575964,913.5,913.22,1.104]
[1764798118566,1.09575964,913.49,913.22,1.104]
[1764798118770,1.09575964,913.48,913.22,1.104]
[1764798118970,1.09554847,913.57,913.22,1.104]
[1764798119171,1.09574206,913.56,913.22,1.104]
[1764798119371,1.09554847,913.68,913.22,1.104]
[1764798119574,1.09559003,913.67,913.22,1.104]
[1764798119769,1.09559003,913.66,913.22,1.104]
[1764798119973,1.09559003,913.65,913.22,1.104]
[1764798120173,1.09559003,913.64,913.22,1.104]
[1764798120375,1.09554847,913.72,913.22,1.104]
[1764798120575,1.0955349,913.71,913.22,1.104]
[1764798120770,1.0955349,913.7,913.22,1.104]
[1764798120972,1.09554847,913.72,913.22,1.104]
[1764798120973,1.0955349,913.69,913.22,1.104]
[1764798121172,1.0955349,913.68,913.22,1.104]
[1764798121472,1.0955349,913.67,913.22,1.104]
[1764798121671,1.0955349,913.66,913.22,1.104]
[1764798121875,1.0955349,913.65,913.22,1.104]
[1764798122075,1.0955349,913.64,913.22,1.104]
[1764798122273,1.09553631,913.63,913.22,1.104]
[1764798122476,1.09554847,913.68,913.22,1.104]
[1764798122775,1.09553631,913.67,913.22,1.104]
[1764798123074,1.09553631,913.66,913.22,1.104]
[1764798123275,1.09553631,913.65,913.22,1.104]
[1764798123477,1.09553631,913.64,913.22,1.104]
[1764798123676,1.09553631,913.63,913.22,1.104]
[1764798123874,1.09553631,913.62,913.22,1.104]
[1764798124077,1.09554847,913.65,913.22,1.104]
[1764798124272,1.09553591,913.64,913.22,1.104]
[1764798124472,1.09553591,913.63,913.22,1.104]
[1764798124771,1.09553591,913.62,913.22,1.104]
[1764798124973,1.09553591,913.61,913.22,1.104]
[1764798125172,1.09553571,913.6,913.23,0.916]
[1764798125373,1.09554847,913.64,913.23,0.916]
[1764798125573,1.09553571,913.63,913.23,0.916]
[1764798125773,1.09554847,913.67,913.23,0.916]
[1764798125973,1.09554847,913.71,913.23,0.916]
[1764798126175,1.09544896,913.7,913.23,0.916]
[1764798126473,1.09544896,913.69,913.23,0.916]
[1764798126674,1.09544896,913.68,913.23,0.916]
[1764798126977,1.09544896,913.67,913.23,0.916]
[1764798127176,1.09544896,913.66,913.23,0.916]
[1764798127377,1.09544855,913.65,913.23,0.916]
[1764798127573,1.09554847,913.7,913.23,0.916]
[1764798127773,1.09544855,913.69,913.23,0.916]
[1764798127979,1.09554847,913.71,913.23,0.916]
[1764798128178,1.09554847,913.78,913.23,0.916]
[1764798128476,1.09534411,913.77,913.23,0.916]
[1764798128675,1.09534411,913.76,913.23,0.916]
[1764798128876,1.09534411,913.75,913.23,0.916]
[1764798129077,1.09534411,913.74,913.23,0.916]
[1764798129281,1.09534411,913.73,913.23,0.916]
[1764798129577,1.09534411,913.72,913.23,0.916]
[1764798129776,1.09554847,913.8,913.23,0.916]
[1764798129977,1.09534391,913.79,913.23,0.916]
[1764798130178,1.09534391,913.78,913.23,0.916]
[1764798130377,1.09534391,913.77,913.23,0.916]
[1764798130581,1.09534391,913.76,913.23,0.916]
[1764798130877,1.09534391,913.75,913.23,0.916]
[1764798131081,1.09534391,913.74,913.23,0.916]
[1764798131379,1.09534391,913.73,913.23,0.916]
[1764798131682,1.09534391,913.72,913.23,0.916]
[1764798131882,1.09534391,913.71,913.23,0.916]
[1764798132183,1.09534391,913.7,913.23,0.916]
[1764798132384,1.09534391,913.69,913.23,0.916]
[1764798132678,1.09534391,913.68,913.23,0.916]
[1764798132882,1.09554847,913.76,913.23,0.916]
[1764798133082,1.09535761,913.75,913.23,0.916]
[1764798133280,1.09535761,913.74,913.23,0.916]
[1764798133480,1.09535761,913.73,913.23,0.916]
[1764798133682,1.09535761,913.72,913.23,0.916]
[1764798133882,1.09535761,913.71,913.23,0.916]
[1764798134082,1.09535761,913.7,913.23,0.916]
[1764798134281,1.09535761,913.69,913.23,0.916]
[1764798134484,1.09535761,913.68,913.23,0.916]
[1764798134683,1.09535761,913.67,913.23,0.916]
[1764798134985,1.09535761,913.66,913.23,0.916]
[1764798135180,1.09535761,913.65,913.23,0.916]
[1764798135386,1.09535761,913.64,913.23,0.916]
[1764798135686,1.09535761,913.63,913.23,0.916]
[1764798135983,1.09535761,913.62,913.23,0.916]
[1764798136187,1.09535761,913.61,913.23,0.916]
[1764798136387,1.09535761,913.6,913.23,0.916]
[1764798136586,1.09554847,913.64,913.23,0.916]
[1764798136587,1.09535761,913.59,913.23,0.916]
[1764798136783,1.09535761,913.58,913.23,0.916]
[1764798136989,1.09535761,913.57,913.23,0.916]
[1764798137190,2.73887118,914.47,913.23,0.916]
[1764798137191,1.09535761,913.56,913.23,0.916]
[1764798137391,1.09535761,913.55,913.23,0.916]
[1764798137687,1.09535761,913.54,913.23,0.916]
[1764798137887,1.09535761,913.53,913.23,0.916]
[1764798138090,1.09535761,913.52,913.23,0.916]
[1764798138291,1.09535761,913.51,913.23,0.916]
[1764798138590,1.09535761,913.5,913.24,1.128]
[1764798138787,1.09535761,913.49,913.24,1.128]
[1764798138989,1.09554847,913.61,913.24,1.128]
[1764798139192,2.19103607,913.6,913.24,1.128]
[1764798139388,0.13357492,915.44,913.24,1.128]
[1764798139389,1.0954876,913.59,913.24,1.128]
[1764798139590,1.0954876,913.58,913.24,1.128]
[1764798139788,1.0954876,913.57,913.24,1.128]
[1764798139989,1.0954876,913.56,913.24,1.128]
[1764798140190,1.0954876,913.55,913.24,1.128]
[1764798140390,1.0954876,913.54,913.24,1.128]
[1764798140590,1.0954876,913.53,913.24,1.128]
[1764798140794,1.0954876,913.52,913.24,1.128]
[1764798141095,1.0954876,913.51,913.24,1.128]
[1764798141294,1.0954876,913.5,913.24,1.128]
[1764798141495,1.09554847,913.61,913.24,1.128]
[1764798141691,1.09546014,913.6,913.24,1.128]
[1764798141896,1.09546014,913.59,913.24,1.128]